fUST/lending_fUST_20250402
["ID","MTS","AMOUNT","RATE_DAILY","PERIOD"]
[356996050,1743547832045,-2292.75292145,0.00019134,2]
[356996051,1743547832055,-2292.75292145,0.00019134,2]
[356996052,1743547832065,-2292.75292145,0.00019134,2]
[356996053,1743547832075,-2292.75292145,0.00019134,2]
[356996054,1743547832084,-2292.75292145,0.00019134,2]
[356996055,1743547832093,-2292.75292145,0.00019134,2]
[356996056,1743547832104,-2292.75292145,0.00019134,2]
[356996057,1743547832113,-2292.75292145,0.00019134,2]
[356996058,1743547832123,-2292.75292145,0.00019134,2]
[356996059,1743547832134,-2292.75292145,0.00019134,2]
[356996060,1743547832143,-2292.75292145,0.00019134,2]
[356996061,1743547832153,-2292.75292145,0.00019134,2]
[356996062,1743547832162,-2292.75292145,0.00019134,2]
[356996063,1743547832172,-2292.75292145,0.00019134,2]
[356996064,1743547832182,-2292.75292145,0.00019134,2]
[356996065,1743547832192,-2292.75292145,0.00019134,2]
[356996066,1743547832203,-2292.75292145,0.00019134,2]
[356996067,1743547832214,-2292.75292145,0.00019134,2]
[356996068,1743547832225,-2292.75292145,0.00019134,2]
[356996069,1743547832234,-2292.75292145,0.00019134,2]
[356996070,1743547832244,-2292.75292145,0.00019134,2]
[356996071,1743547832253,-2292.75292145,0.00019134,2]
[356996072,1743547832263,-2292.75292145,0.00019134,2]
[356996073,1743547832272,-2292.75292145,0.00019134,2]
[356996074,1743547832282,-2292.75292145,0.00019134,2]
[356996075,1743547832291,-2292.75292145,0.00019134,2]
[356996076,1743547832301,-2292.75292145,0.00019134,2]
[356996077,1743547832312,-2292.75292145,0.00019134,2]
[356996078,1743547832322,-2292.75292145,0.00019134,2]
[356996079,1743547832517,-2292.75292145,0.00019134,2]
[356996080,1743547832528,-2292.75292145,0.00019134,2]
[356996081,1743547832538,-2292.75292145,0.00019134,2]
[356996082,1743547832548,-2292.75292145,0.00019134,2]
[356996083,1743547832558,-2292.75292145,0.00019134,2]
[356996084,1743547832567,-2292.75292145,0.00019134,2]
[356996085,1743547832577,-2292.75292145,0.00019134,2]
[356996086,1743547832587,-2292.75292145,0.00019134,2]
[356996087,1743547832595,-2292.75292145,0.00019134,2]
[356996088,1743547832605,-2292.75292145,0.00019134,2]
[356996089,1743547832614,-2292.75292145,0.00019134,2]
[356996090,1743547832624,-2292.75292145,0.00019134,2]
[356996091,1743547832634,-2292.75292145,0.00019134,2]
[356996092,1743547832643,-2292.75292145,0.00019134,2]
[356996093,1743547832653,-2292.75292145,0.00019134,2]
[356996094,1743547832663,-2292.75292145,0.00019134,2]
[356996095,1743547832672,-2292.75292145,0.00019134,2]
[356996096,1743547832682,-2292.75292145,0.00019134,2]
[356996097,1743547832692,-2292.75292145,0.00019134,2]
[356996098,1743547832702,-2292.75292145,0.00019134,2]
[356996099,1743547832712,-2292.75292145,0.00019134,2]
[356996100,1743547832726,-2292.75292145,0.00019134,2]
[356996101,1743547832738,-4702.11215736,0.00019134,2]
[356996102,1743547832748,-4702.11215736,0.00019134,2]
[356996103,1743547832760,-4702.11215736,0.00019134,2]
[356996104,1743547832769,-4702.11215736,0.00019134,2]
[356996105,1743547832779,-4702.11215736,0.00019134,2]
[356996106,1743547832788,-4702.11215736,0.00019134,2]
[356996107,1743547832799,-4702.11215736,0.00019134,2]
[356996108,1743547832808,-4702.11215736,0.00019134,2]
[356996109,1743547832818,-4702.11215736,0.00019134,2]
[356996110,1743547832828,-4702.11215736,0.00019134,2]
[356996111,1743547832837,-4702.11215736,0.00019134,2]
[356996112,1743547832848,-4702.11215736,0.00019134,2]
[356996113,1743547832858,-4702.11215736,0.00019134,2]
[356996114,1743547832867,-4702.11215736,0.00019134,2]
[356996115,1743547832877,-4702.11215736,0.00019134,2]
[356996116,1743547832888,-4702.11215736,0.00019134,2]
[356996117,1743547832898,-550.12656954,0.00019134,2]
[356996118,1743547832911,-426.26,0.00019134,2]
[356996119,1743547832925,-385.29704854,0.00019134,2]
[356996120,1743547832938,-2503.99719708,0.00019134,2]
[356996121,1743547832949,-418.88,0.00019134,2]
[356996122,1743547832961,-417.5513422,0.00019134,2]
[356996123,1743547832971,-4702.11215736,0.00019134,2]
[356996124,1743547832983,-4702.11215736,0.00019134,2]
[356996125,1743547832992,-4702.11215736,0.00019134,2]
[356996126,1743547833003,-4702.11215736,0.00019134,2]
[356996127,1743547833012,-4702.11215736,0.00019134,2]
[356996128,1743547833022,-4702.11215736,0.00019134,2]
[356996129,1743547833032,-4702.11215736,0.00019134,2]
[356996130,1743547833042,-4702.11215736,0.00019134,2]
[356996131,1743547833051,-4702.11215736,0.00019134,2]
[356996132,1743547833060,-4702.11215736,0.00019134,2]
[356996133,1743547833070,-4702.11215736,0.00019134,2]
[356996134,1743547833080,-4702.11215736,0.00019134,2]
[356996135,1743547833089,-4702.11215736,0.00019134,2]
[356996136,1743547833099,-4702.11215752,0.00019134,2]
[356996137,1743547833108,-500.0,0.00019134,2]
[356996138,1743547833118,-295.89226976,0.00019134,2]
[356996139,1743547833127,-8859.70815605,0.00019135,2]
[356996140,1743547833137,-678.42,0.00019135,2]
[356996141,1743547833147,-500.0,0.00019135,2]
[356996142,1743547833156,-768.51,0.00019135,2]
[356996143,1743547833166,-619.03,0.00019135,2]
[356996144,1743547833175,-675.28,0.00019137,2]
[356996145,1743547833185,-684.62,0.00019137,2]
[356996146,1743547833195,-846.61,0.00019137,2]
[356996147,1743547833205,-534.62,0.00019137,2]
[356996148,1743547833215,-967.32,0.00019139,2]
[356996149,1743547833225,-1100.48,0.00019139,2]
[356996150,1743547833235,-503.75552138,0.00019173,2]
[356996151,1743547833244,-500.0,0.00019173,2]
[356996152,1743547833254,-500.0,0.00019173,2]
[356996153,1743547833263,-581.93441178,0.00019173,2]
[356996154,1743547833273,-500.34803748,0.00019173,2]
[356996155,1743547833283,-500.0,0.00019173,2]
[356996156,1743547833292,-500.0,0.00019173,2]
[356996157,1743547833301,-509.19423908,0.00019173,2]
[356996158,1743547833311,-637.80866703,0.00019173,2]
[356996159,1743547833320,-500.0,0.00019173,2]
[356996160,1743547833330,-500.0,0.00019173,2]
[356996161,1743547833340,-500.0,0.00019173,2]
[356996162,1743547833350,-500.0,0.00019173,2]
[356996163,1743547833359,-500.0,0.00019173,2]
[356996164,1743547833369,-500.0,0.00019173,2]
[356996165,1743547833379,-500.0,0.00019173,2]
[356996166,1743547833388,-500.0,0.00019173,2]
[356996167,1743547833398,-500.0,0.00019173,2]
[356996168,1743547833408,-500.0,0.00019173,2]
[356996169,1743547833418,-500.0,0.00019173,2]
[356996170,1743547833428,-500.0,0.00019173,2]
[356996171,1743547833438,-381.2445902,0.00019294,2]
[356996172,1743547833447,-678.42,0.00019409,2]
[356996173,1743547833457,-768.51,0.00019409,2]
[356996174,1743547833467,-619.03,0.00019409,2]
[356996175,1743547833478,-675.28,0.00019411,2]
[356996176,1743547833487,-684.62,0.00019411,2]
[356996177,1743547833497,-846.61,0.00019411,2]
[356996178,1743547833507,-534.62,0.00019411,2]
[356996179,1743547833517,-967.32,0.00019413,2]
[356996180,1743547833527,-1100.48,0.00019413,2]
[356996181,1743547833537,-381.2445902,0.00019554,2]
[356996182,1743547833547,-678.42,0.00019683,2]
[356996183,1743547833556,-768.51,0.00019683,2]
[356996184,1743547833566,-619.03,0.00019683,2]
[356996185,1743547833576,-675.28,0.00019685,2]
[356996186,1743547833585,-684.62,0.00019685,2]
[356996187,1743547833595,-846.61,0.00019685,2]
[356996188,1743547833605,-534.62,0.00019685,2]
[356996189,1743547833615,-967.32,0.00019687,2]
[356996190,1743547833625,-1100.48,0.00019687,2]
[356996191,1743547833635,-932.72,0.000198,2]
[356996192,1743547833644,-381.2445902,0.00019813,2]
[356996193,1743547833654,-500.0,0.00019881,2]
[356996194,1743547833663,-678.42,0.00019957,2]
[356996195,1743547833673,-768.51,0.00019957,2]
[356996196,1743547833683,-619.03,0.00019957,2]
[356996197,1743547833692,-675.28,0.00019959,2]
[356996198,1743547833702,-684.62,0.00019959,2]
[356996199,1743547833712,-846.61,0.00019959,2]
[356996200,1743547833726,-534.62,0.00019959,2]
[356996201,1743547833735,-967.32,0.00019961,2]
[356996202,1743547833745,-1100.48,0.00019961,2]
[356996203,1743547833755,-189.61141663,0.0002,2]
[356996204,1743547833767,-381.2445902,0.00020073,2]
[356996205,1743547833776,-500.0,0.00020107,2]
[356996206,1743547833786,-138790.60424657,0.00020138,2]
[356996207,1743547833882,-37036.52477966,0.00020138,2]
[356996208,1743547833894,-373.6340715,0.00020138,2]
[356996230,1743547837890,-562.73,0.00019135,2]
[356996231,1743547837900,-562.73,0.00019409,2]
[356996232,1743547837911,-562.73,0.00019683,2]
[356996233,1743547837922,-27274.19215649,0.00020138,2]
[356996244,1743547840113,-562.73,0.00019957,2]
[356996245,1743547840124,-594.61769832,0.00020138,2]
[356996246,1743547840141,-258.22,0.00020138,2]
[356996247,1743547840152,-6655.97958307,0.00020138,2]
[356996258,1743547842960,-10857.65784964,0.00020138,2]
[356996274,1743548042862,166.593297,0.00013699,2]
[356996322,1743549032293,-24900.0,0.00017699,2]
[356996323,1743549032303,-2075.64784,0.00017786,2]
[356996324,1743549032313,-1316.948197,0.00017792,2]
[356996325,1743549032328,-500.0,0.00018495,2]
[356996326,1743549032347,-946.08557104,0.00018595,2]
[356996327,1743549032361,-1194.8542458,0.00018596,2]
[356996328,1743549032375,-1779.30255965,0.00018691,2]
[356996329,1743549032389,-189.84567996,0.000187,2]
[356996330,1743549032401,-300.0,0.0001877,2]
[356996331,1743549032412,-160.0,0.0001877,2]
[356996332,1743549032427,-835.82398976,0.0001877,2]
[356996333,1743549032440,-500.0,0.00018771,2]
[356996334,1743549032452,-296.17736157,0.00018771,2]
[356996335,1743549032465,-500.0,0.00018771,2]
[356996336,1743549032476,-481.21200663,0.00018771,2]
[356996337,1743549032490,-500.0,0.00018771,2]
[356996338,1743549032502,-500.0,0.00018771,2]
[356996339,1743549032515,-500.0,0.00018771,2]
[356996340,1743549032529,-500.0,0.00018771,2]
[356996341,1743549032542,-500.0,0.00018771,2]
[356996342,1743549032554,-500.0,0.00018771,2]
[356996343,1743549032566,-500.0,0.00018771,2]
[356996344,1743549032579,-500.0,0.00018771,2]
[356996345,1743549032591,-500.0,0.00018771,2]
[356996346,1743549032604,-500.0,0.00018771,2]
[356996347,1743549032617,-500.0,0.00018771,2]
[356996348,1743549032629,-500.0,0.00018771,2]
[356996349,1743549032642,-500.0,0.00018771,2]
[356996350,1743549032654,-500.0,0.00018771,2]
[356996351,1743549032666,-500.0,0.00018771,2]
[356996352,1743549032679,-500.0,0.00018771,2]
[356996353,1743549032690,-500.0,0.00018771,2]
[356996354,1743549032701,-500.0,0.00018771,2]
[356996355,1743549032712,-500.0,0.00018771,2]
[356996356,1743549032725,-500.0,0.00018771,2]
[356996357,1743549032737,-500.0,0.00018771,2]
[356996358,1743549032750,-500.0,0.00018771,2]
[356996359,1743549032763,-500.0,0.00018771,2]
[356996360,1743549032777,-500.0,0.00018771,2]
[356996361,1743549032789,-301.0134396,0.00018771,2]
[356996362,1743549032801,-500.0,0.00018771,2]
[356996363,1743549032814,-500.0,0.00018771,2]
[356996364,1743549032826,-500.0,0.00018771,2]
[356996365,1743549032840,-500.0,0.00018771,2]
[356996366,1743549032852,-763.96605013,0.00018771,2]
[356996367,1743549032865,-763.96605013,0.00018771,2]
[356996368,1743549032875,-763.96605013,0.00018771,2]
[356996369,1743549032886,-763.96605013,0.00018771,2]
[356996370,1743549032896,-763.96605013,0.00018771,2]
[356996371,1743549032907,-763.96605013,0.00018771,2]
[356996372,1743549032919,-763.96605013,0.00018771,2]
[356996373,1743549032932,-763.96605013,0.00018771,2]
[356996374,1743549032944,-763.96605013,0.00018771,2]
[356996375,1743549032958,-763.96605013,0.00018771,2]
[356996376,1743549032972,-763.96605013,0.00018771,2]
[356996377,1743549032983,-763.96605013,0.00018771,2]
[356996378,1743549032994,-763.96605013,0.00018771,2]
[356996379,1743549033005,-763.96605013,0.00018771,2]
[356996380,1743549033017,-763.96605013,0.00018771,2]
[356996381,1743549033033,-763.96605013,0.00018771,2]
[356996382,1743549033046,-763.96605013,0.00018771,2]
[356996383,1743549033058,-763.96605013,0.00018771,2]
[356996384,1743549033069,-763.96605013,0.00018771,2]
[356996385,1743549033082,-763.96605013,0.00018771,2]
[356996386,1743549033093,-763.96605013,0.00018771,2]
[356996387,1743549033108,-763.96605013,0.00018771,2]
[356996388,1743549033119,-763.96605013,0.00018771,2]
[356996389,1743549033131,-763.96605013,0.00018771,2]
[356996390,1743549033146,-763.96605013,0.00018771,2]
[356996391,1743549033158,-763.96605013,0.00018771,2]
[356996392,1743549033171,-763.96605013,0.00018771,2]
[356996393,1743549033184,-763.96605013,0.00018771,2]
[356996394,1743549033195,-763.96605013,0.00018771,2]
[356996395,1743549033208,-763.96605013,0.00018771,2]
[356996396,1743549033220,-763.96605013,0.00018771,2]
[356996397,1743549033232,-763.96605013,0.00018771,2]
[356996398,1743549033243,-763.96605013,0.00018771,2]
[356996399,1743549033255,-763.96605013,0.00018771,2]
[356996400,1743549033267,-763.96605013,0.00018771,2]
[356996401,1743549033280,-763.96605013,0.00018771,2]
[356996402,1743549033292,-763.96605013,0.00018771,2]
[356996403,1743549033303,-763.96605013,0.00018771,2]
[356996404,1743549033315,-763.96605013,0.00018771,2]
[356996405,1743549033326,-763.96605013,0.00018771,2]
[356996406,1743549033338,-763.96605013,0.00018771,2]
[356996407,1743549033349,-763.96605013,0.00018771,2]
[356996408,1743549033361,-767.60398369,0.00018771,2]
[356996409,1743549033372,-767.60398369,0.00018771,2]
[356996410,1743549033384,-767.60398369,0.00018771,2]
[356996411,1743549033395,-767.60398369,0.00018771,2]
[356996412,1743549033406,-767.60398369,0.00018771,2]
[356996413,1743549033417,-767.60398369,0.00018771,2]
[356996414,1743549033429,-767.60398369,0.00018771,2]
[356996415,1743549033442,-767.60398369,0.00018771,2]
[356996416,1743549033454,-767.60398369,0.00018771,2]
[356996417,1743549033465,-767.60398369,0.00018771,2]
[356996418,1743549033477,-767.60398369,0.00018771,2]
[356996419,1743549033488,-767.60398369,0.00018771,2]
[356996420,1743549033499,-767.60398369,0.00018771,2]
[356996421,1743549033511,-767.60398369,0.00018771,2]
[356996422,1743549033522,-767.60398369,0.00018771,2]
[356996423,1743549033534,-767.60398369,0.00018771,2]
[356996424,1743549033545,-767.60398369,0.00018771,2]
[356996425,1743549033556,-767.60398369,0.00018771,2]
[356996426,1743549033567,-767.60398369,0.00018771,2]
[356996427,1743549033578,-767.60398369,0.00018771,2]
[356996428,1743549033589,-767.60398369,0.00018771,2]
[356996429,1743549033600,-500.0,0.00018771,2]
[356996430,1743549033611,-500.0,0.00018771,2]
[356996431,1743549033623,-500.0,0.00018771,2]
[356996432,1743549033635,-503.74038843,0.00018772,2]
[356996433,1743549033646,-160.0,0.00018772,2]
[356996434,1743549033658,-500.0,0.00018773,2]
[356996435,1743549033670,-500.0,0.00018773,2]
[356996436,1743549033682,-500.0,0.00018773,2]
[356996437,1743549033694,-500.0,0.00018773,2]
[356996438,1743549033705,-500.0,0.00018773,2]
[356996439,1743549033717,-500.0,0.00018773,2]
[356996440,1743549033729,-500.0,0.00018773,2]
[356996441,1743549033740,-500.0,0.00018773,2]
[356996442,1743549033752,-354.75576822,0.00018773,2]
[356996443,1743549033762,-500.0,0.00018773,2]
[356996444,1743549033773,-500.0,0.00018773,2]
[356996445,1743549033783,-500.0,0.00018773,2]
[356996446,1743549033793,-500.0,0.00018773,2]
[356996447,1743549033803,-500.0,0.00018773,2]
[356996448,1743549033813,-500.0,0.00018773,2]
[356996449,1743549033822,-500.0,0.00018773,2]
[356996450,1743549033832,-500.0,0.00018773,2]
[356996451,1743549033842,-500.0,0.00018773,2]
[356996452,1743549033852,-500.0,0.00018773,2]
[356996453,1743549034058,-500.0,0.00018773,2]
[356996454,1743549034074,-500.0,0.00018773,2]
[356996455,1743549034085,-497.57203152,0.00018773,2]
[356996456,1743549034096,-500.0,0.00018773,2]
[356996457,1743549034110,-500.0,0.00018773,2]
[356996458,1743549034120,-500.0,0.00018773,2]
[356996459,1743549034130,-500.0,0.00018773,2]
[356996460,1743549034141,-500.0,0.00018773,2]
[356996461,1743549034151,-501.17725434,0.00018773,2]
[356996462,1743549034161,-368.53929299,0.00018778,2]
[356996463,1743549034172,-711.19,0.00018778,2]
[356996464,1743549034182,-500.0,0.00018778,2]
[356996465,1743549034192,-500.0,0.00018778,2]
[356996466,1743549034201,-500.0,0.00018778,2]
[356996467,1743549034211,-500.0,0.00018778,2]
[356996468,1743549034220,-500.0,0.00018778,2]
[356996469,1743549034231,-500.0,0.00018778,2]
[356996470,1743549034241,-500.0,0.00018778,2]
[356996471,1743549034251,-500.0,0.00018778,2]
[356996472,1743549034262,-500.0,0.00018778,2]
[356996473,1743549034273,-606.33,0.00018778,2]
[356996474,1743549034282,-546.66654184,0.00018778,2]
[356996475,1743549034293,-500.0,0.00018778,2]
[356996476,1743549034303,-500.0,0.00018778,2]
[356996477,1743549034313,-500.0,0.00018778,2]
[356996478,1743549034324,-500.0,0.00018778,2]
[356996479,1743549034334,-500.0,0.00018778,2]
[356996480,1743549034344,-500.0,0.00018778,2]
[356996481,1743549034354,-780.35,0.00018778,2]
[356996482,1743549034364,-500.0,0.00018778,2]
[356996483,1743549034374,-500.0,0.00018778,2]
[356996484,1743549034383,-500.0,0.00018778,2]
[356996485,1743549034393,-500.0,0.00018778,2]
[356996486,1743549034403,-500.0,0.00018778,2]
[356996487,1743549034413,-500.0,0.00018778,2]
[356996488,1743549034422,-500.0,0.00018778,2]
[356996489,1743549034432,-305.64811549,0.00018778,2]
[356996490,1743549034442,-929.72,0.00018778,2]
[356996491,1743549034453,-506.05650716,0.00018778,2]
[356996492,1743549034463,-500.0,0.00018778,2]
[356996493,1743549034473,-204.1,0.00018783,2]
[356996494,1743549034483,-200.0,0.00018784,2]
[356996495,1743549034493,-204.1,0.00018786,2]
[356996496,1743549034502,-500.0,0.00018793,2]
[356996497,1743549034512,-500.0,0.00018793,2]
[356996498,1743549034522,-500.0,0.00018793,2]
[356996499,1743549034531,-500.0,0.00018793,2]
[356996500,1743549034541,-500.0,0.00018793,2]
[356996501,1743549034550,-500.0,0.00018793,2]
[356996502,1743549034560,-500.0,0.00018793,2]
[356996503,1743549034569,-576.61241685,0.00018793,2]
[356996504,1743549034579,-500.0,0.00018793,2]
[356996505,1743549034588,-500.0,0.00018793,2]
[356996506,1743549034597,-500.0,0.00018793,2]
[356996507,1743549034606,-716.35,0.00018793,2]
[356996508,1743549034615,-519.33583812,0.00018793,2]
[356996509,1743549034624,-500.0,0.00018793,2]
[356996510,1743549034634,-500.0,0.00018793,2]
[356996511,1743549034643,-500.0,0.00018793,2]
[356996512,1743549034654,-500.0,0.00018793,2]
[356996513,1743549034663,-500.0,0.00018793,2]
[356996514,1743549034672,-500.0,0.00018793,2]
[356996515,1743549034682,-500.0,0.00018793,2]
[356996516,1743549034691,-500.0,0.00018793,2]
[356996517,1743549034701,-500.0,0.00018793,2]
[356996518,1743549034710,-500.0,0.00018793,2]
[356996519,1743549034720,-853.73,0.00018793,2]
[356996520,1743549034730,-500.0,0.00018793,2]
[356996521,1743549034739,-500.0,0.00018793,2]
[356996522,1743549034749,-309.55,0.00018793,2]
[356996523,1743549034758,-500.0,0.00018795,2]
[356996524,1743549034768,-500.0,0.00018795,2]
[356996525,1743549034778,-500.0,0.00018795,2]
[356996526,1743549034788,-500.0,0.00018795,2]
[356996527,1743549034798,-500.0,0.00018795,2]
[356996528,1743549034807,-506.05809972,0.00018795,2]
[356996529,1743549034817,-500.0,0.00018795,2]
[356996530,1743549034828,-500.0,0.00018795,2]
[356996531,1743549034838,-500.0,0.00018795,2]
[356996532,1743549034848,-1013.51238201,0.00018795,2]
[356996533,1743549034857,-508.69387389,0.00018795,2]
[356996534,1743549034874,-554.1417002,0.00018795,2]
[356996535,1743549034889,-507.63737033,0.00018795,2]
[356996536,1743549034900,-508.39695995,0.00018795,2]
[356996537,1743549034910,-502.38392757,0.00018795,2]
[356996538,1743549034919,-507.1362233,0.00018795,2]
[356996539,1743549034930,-501.73250104,0.00018795,2]
[356996540,1743549034940,-505.07211604,0.00018795,2]
[356996541,1743549034950,-505.40041077,0.00018795,2]
[356996542,1743549034961,-500.0,0.00018795,2]
[356996543,1743549034971,-511.55804965,0.00018795,2]
[356996544,1743549034982,-508.21875065,0.00018795,2]
[356996545,1743549034992,-502.93770645,0.00018795,2]
[356996546,1743549035002,-501.85793761,0.00018795,2]
[356996547,1743549035012,-568.32,0.00018795,2]
[356996548,1743549035023,-500.50155393,0.00018795,2]
[356996549,1743549035033,-500.0,0.00018795,2]
[356996550,1743549035044,-504.53771932,0.00018795,2]
[356996551,1743549035054,-500.0,0.00018795,2]
[356996552,1743549035064,-508.41823515,0.00018795,2]
[356996553,1743549035075,-177.85822579,0.00018795,2]
[356996554,1743549035085,-500.0,0.00018795,2]
[356996555,1743549035098,-505.9856092,0.00018795,2]
[356996556,1743549035109,-645.66,0.00018795,2]
[356996557,1743549035119,-508.84346544,0.00018795,2]
[356996558,1743549035129,-596.39938883,0.00018795,2]
[356996559,1743549035140,-500.95145553,0.00018795,2]
[356996560,1743549035150,-503.38465845,0.00018795,2]
[356996561,1743549035160,-501.2323257,0.00018795,2]
[356996562,1743549035170,-532.64,0.00018795,2]
[356996563,1743549035182,-513.49472192,0.00018795,2]
[356996564,1743549035192,-599.72567381,0.00018795,2]
[356996565,1743549035202,-503.90127045,0.00018795,2]
[356996566,1743549035212,-500.0,0.00018795,2]
[356996567,1743549035222,-509.58383444,0.00018795,2]
[356996568,1743549035232,-501.83617431,0.00018795,2]
[356996569,1743549035242,-500.0,0.00018795,2]
[356996570,1743549035254,-500.0,0.00018795,2]
[356996571,1743549035266,-539.94,0.00018795,2]
[356996572,1743549035277,-268.64,0.00018795,2]
[356996573,1743549035287,-500.0,0.00018795,2]
[356996574,1743549035297,-501.37349625,0.00018795,2]
[356996575,1743549035308,-573.55411561,0.00018795,2]
[356996576,1743549035318,-518.32411493,0.00018795,2]
[356996577,1743549035329,-570.88,0.00018795,2]
[356996578,1743549035339,-500.0,0.00018795,2]
[356996579,1743549035349,-500.0,0.00018795,2]
[356996580,1743549035359,-508.81205845,0.00018795,2]
[356996581,1743549035368,-500.0,0.00018795,2]
[356996582,1743549035378,-540.11,0.00018795,2]
[356996583,1743549035388,-503.07972636,0.00018795,2]
[356996584,1743549035399,-508.13576633,0.00018795,2]
[356996585,1743549035409,-505.99494985,0.00018795,2]
[356996586,1743549035419,-505.19083887,0.00018795,2]
[356996587,1743549035429,-500.0,0.00018795,2]
[356996588,1743549035440,-500.0,0.00018795,2]
[356996589,1743549035450,-500.0,0.00018795,2]
[356996590,1743549035460,-500.0,0.00018795,2]
[356996591,1743549035470,-507.17385256,0.00018795,2]
[356996592,1743549035480,-500.0,0.00018795,2]
[356996593,1743549035493,-500.0,0.00018795,2]
[356996594,1743549035503,-508.66173035,0.00018795,2]
[356996595,1743549035513,-503.11343385,0.00018795,2]
[356996596,1743549035524,-252.07555319,0.00018795,2]
[356996597,1743549035533,-538.63155794,0.00018795,2]
[356996598,1743549035544,-500.0,0.00018795,2]
[356996599,1743549035554,-505.81702278,0.00018795,2]
[356996600,1743549035564,-539.91286805,0.00018795,2]
[356996601,1743549035574,-500.0,0.00018795,2]
[356996602,1743549035584,-500.0,0.00018795,2]
[356996603,1743549035594,-504.42627754,0.00018795,2]
[356996604,1743549035604,-500.0,0.00018795,2]
[356996605,1743549035614,-501.45740612,0.00018795,2]
[356996606,1743549035624,-508.91225802,0.00018795,2]
[356996607,1743549035636,-500.0,0.00018795,2]
[356996608,1743549035649,-504.21195311,0.00018795,2]
[356996609,1743549035664,-502.20989369,0.00018795,2]
[356996610,1743549035674,-509.25334625,0.00018795,2]
[356996611,1743549035684,-508.12740116,0.00018795,2]
[356996612,1743549035694,-508.47547911,0.00018795,2]
[356996613,1743549035704,-500.0,0.00018795,2]
[356996614,1743549035714,-503.96290832,0.00018795,2]
[356996615,1743549035731,-580.85685187,0.00018795,2]
[356996616,1743549035745,-500.0,0.00018795,2]
[356996617,1743549035755,-500.0,0.00018795,2]
[356996618,1743549035765,-500.0,0.00018795,2]
[356996619,1743549035776,-500.0,0.00018795,2]
[356996620,1743549035786,-500.0,0.00018795,2]
[356996621,1743549035796,-505.49509328,0.00018795,2]
[356996622,1743549035806,-806.1,0.00018795,2]
[356996623,1743549035816,-503.64878072,0.00018795,2]
[356996624,1743549035826,-512.9372349,0.00018795,2]
[356996625,1743549035836,-501.7016827,0.00018795,2]
[356996626,1743549035846,-500.0,0.00018795,2]
[356996627,1743549035856,-510.42305418,0.00018795,2]
[356996628,1743549035866,-500.0,0.00018795,2]
[356996629,1743549035876,-239.83,0.00018795,2]
[356996630,1743549035886,-500.0,0.00018795,2]
[356996631,1743549035896,-500.0,0.00018795,2]
[356996632,1743549035906,-526.51,0.00018795,2]
[356996633,1743549035916,-500.0,0.00018795,2]
[356996634,1743549035926,-502.52906685,0.00018795,2]
[356996635,1743549035936,-516.43,0.00018795,2]
[356996636,1743549035946,-500.0,0.00018795,2]
[356996637,1743549035955,-500.0,0.00018795,2]
[356996638,1743549035967,-500.0,0.00018795,2]
[356996639,1743549035976,-500.0,0.00018795,2]
[356996640,1743549035985,-500.0,0.00018795,2]
[356996641,1743549035994,-500.0,0.00018795,2]
[356996642,1743549036003,-500.0,0.00018795,2]
[356996643,1743549036013,-500.0,0.00018795,2]
[356996644,1743549036022,-502.92634945,0.00018795,2]
[356996645,1743549036032,-500.0,0.00018795,2]
[356996646,1743549036042,-536.65,0.00018795,2]
[356996647,1743549036052,-500.0,0.00018795,2]
[356996648,1743549036061,-500.20855792,0.00018795,2]
[356996649,1743549036071,-521.39509884,0.00018795,2]
[356996650,1743549036080,-507.44,0.00018795,2]
[356996651,1743549036090,-500.0,0.00018795,2]
[356996652,1743549036105,-500.0,0.00018795,2]